[Event "Titled Tuesday Blitz January 10 Early 2023"]
[White "Andreikin, Dmitry"]
[Black "Fromm, Marius"]
[WhiteFideId "4158814"]
[BlackFideId "12993190"]
[WhiteElo "2729"]
[BlackElo "2457"]
[Result "1-0"]
[Round "02"]
[TimeControl "180+2"]
[Date "2023.01.10"]
[WhiteClock "0:01:27"]
[BlackClock "0:00:13"]

1. e4 {[%clk 0:03:00]}  c5 {[%clk 0:03:00]} 2. Nf3 {[%clk 0:03:00]}  d6 {[%clk 0:03:01]} 3. d4 {[%clk 0:02:58]}  cxd4 {[%clk 0:03:01]} 4. Nxd4 {[%clk 0:02:58]}  Nf6 {[%clk 0:03:02]} 5. Nc3 {[%clk 0:02:59]}  a6 {[%clk 0:03:03]} 6. Be2 {[%clk 0:02:57]}  e5 {[%clk 0:03:03]} 7. Nb3 {[%clk 0:02:57]}  Be7 {[%clk 0:03:03]} 8. Be3 {[%clk 0:02:57]}  Be6 {[%clk 0:03:03]} 9. Bf3 {[%clk 0:02:57]}  O-O {[%clk 0:03:02]} 10. g4 {[%clk 0:02:57]}  Ne8 {[%clk 0:02:45]} 11. h4 {[%clk 0:02:55]}  Nc6 {[%clk 0:02:41]} 12. g5 {[%clk 0:02:55]}  f6 {[%clk 0:02:34]} 13. Bg4 {[%clk 0:02:54]}  f5 {[%clk 0:02:27]} 14. exf5 {[%clk 0:02:51]}  Bxf5 {[%clk 0:02:28]} 15. Bxf5 {[%clk 0:02:46]}  Rxf5 {[%clk 0:02:29]} 16. Qd3 {[%clk 0:02:46]}  Rf8 {[%clk 0:02:24]} 17. O-O-O {[%clk 0:02:46]}  Nc7 {[%clk 0:02:20]} 18. Kb1 {[%clk 0:02:44]}  Qc8 {[%clk 0:02:10]} 19. Bb6 {[%clk 0:02:39]}  Ne6 {[%clk 0:02:02]} 20. Nd5 {[%clk 0:02:39]}  Bd8 {[%clk 0:01:48]} 21. Rhg1 {[%clk 0:02:36]}  Nf4 {[%clk 0:01:42]} 22. Nxf4 {[%clk 0:02:32]}  Rxf4 {[%clk 0:01:43]} 23. Be3 {[%clk 0:02:32]}  Rxh4 {[%clk 0:01:37]} 24. Qxd6 {[%clk 0:02:23]}  Be7 {[%clk 0:01:35]} 25. Qd5+ {[%clk 0:02:23]}  Kh8 {[%clk 0:01:35]} 26. a3 {[%clk 0:02:21]}  Qf5 {[%clk 0:01:33]} 27. Qd7 {[%clk 0:02:18]}  Qxd7 {[%clk 0:01:25]} 28. Rxd7 {[%clk 0:02:19]}  Rb8 {[%clk 0:01:25]} 29. Nd2 {[%clk 0:02:08]}  Kg8 {[%clk 0:01:21]} 30. Nf3 {[%clk 0:02:07]}  Re4 {[%clk 0:01:07]} 31. Rh1 {[%clk 0:02:05]}  Bf8 {[%clk 0:00:59]} 32. Nh4 {[%clk 0:01:50]}  Nd4 {[%clk 0:00:54]} 33. c3 {[%clk 0:01:46]}  Ne6 {[%clk 0:00:51]} 34. g6 {[%clk 0:01:45]}  h6 {[%clk 0:00:41]} 35. Nf3 {[%clk 0:01:44]}  Bc5 {[%clk 0:00:37]} 36. Bxc5 {[%clk 0:01:37]}  Nxc5 {[%clk 0:00:38]} 37. Re7 {[%clk 0:01:38]}  Nd3 {[%clk 0:00:19]} 38. Ng5 {[%clk 0:01:32]}  hxg5 {[%clk 0:00:17]} 39. Rh7 {[%clk 0:01:32]}  Rf4 {[%clk 0:00:12]} 40. Rexg7+ {[%clk 0:01:28]}  Kf8 {[%clk 0:00:12]} 41. Rd7 {[%clk 0:01:29]}  Kg8 {[%clk 0:00:13]} 42. Rxd3 {[%clk 0:01:28]}  Rf6 {[%clk 0:00:13]} 43. Rdh3 {[%clk 0:01:26]}  Rxg6 {[%clk 0:00:13]} 44. Rh8+ {[%clk 0:01:27]} 1-0


[Site "https://www.chess.com"]

[Event "Titled Tuesday Blitz January 10 Early 2023"]
[White "Tica, Sven"]
[Black "Bluebaum, Matthias"]
[WhiteFideId "14526948"]
[BlackFideId "24651516"]
[WhiteElo "2431"]
[BlackElo "2669"]
[Result "0-1"]
[Round "02"]
[TimeControl "180+2"]
[Date "2023.01.10"]
[WhiteClock "0:00:49"]
[BlackClock "0:01:10"]

1. e4 {[%clk 0:03:00]}  e6 {[%clk 0:03:00]} 2. b3 {[%clk 0:03:00]}  d5 {[%clk 0:03:01]} 3. Bb2 {[%clk 0:03:01]}  a6 {[%clk 0:03:01]} 4. e5 {[%clk 0:02:49]}  c5 {[%clk 0:03:01]} 5. f4 {[%clk 0:02:47]}  Nc6 {[%clk 0:03:01]} 6. Nf3 {[%clk 0:02:48]}  Nh6 {[%clk 0:03:01]} 7. c3 {[%clk 0:02:45]}  Nf5 {[%clk 0:03:01]} 8. a3 {[%clk 0:02:44]}  Be7 {[%clk 0:02:50]} 9. d4 {[%clk 0:02:44]}  Ne3 {[%clk 0:02:49]} 10. Qd3 {[%clk 0:02:29]}  Nxf1 {[%clk 0:02:47]} 11. Rxf1 {[%clk 0:02:30]}  Qb6 {[%clk 0:02:46]} 12. b4 {[%clk 0:02:29]}  cxd4 {[%clk 0:02:43]} 13. cxd4 {[%clk 0:02:28]}  Bd7 {[%clk 0:02:39]} 14. Nc3 {[%clk 0:02:25]}  Na5 {[%clk 0:02:39]} 15. Nd2 {[%clk 0:02:10]}  Rc8 {[%clk 0:02:33]} 16. Kf2 {[%clk 0:02:02]}  Nc4 {[%clk 0:02:31]} 17. Rab1 {[%clk 0:02:03]}  f6 {[%clk 0:02:27]} 18. Kg1 {[%clk 0:01:46]}  O-O {[%clk 0:02:25]} 19. Rf3 {[%clk 0:01:40]}  fxe5 {[%clk 0:02:22]} 20. fxe5 {[%clk 0:01:32]}  Nxe5 {[%clk 0:02:22]} 21. Rxf8+ {[%clk 0:01:32]}  Rxf8 {[%clk 0:02:23]} 22. Qe2 {[%clk 0:01:29]}  Qxd4+ {[%clk 0:02:21]} 23. Kh1 {[%clk 0:01:29]}  Nd3 {[%clk 0:02:17]} 24. Nf3 {[%clk 0:01:16]}  Qc4 {[%clk 0:01:29]} 25. Ba1 {[%clk 0:01:05]}  Nf4 {[%clk 0:01:20]} 26. Qxc4 {[%clk 0:01:04]}  dxc4 {[%clk 0:01:20]} 27. Ne5 {[%clk 0:01:04]}  Be8 {[%clk 0:01:13]} 28. Nxc4 {[%clk 0:01:02]}  Nd3 {[%clk 0:01:13]} 29. Ne4 {[%clk 0:01:00]}  Bg6 {[%clk 0:01:14]} 30. Ncd2 {[%clk 0:00:55]}  Nf2+ {[%clk 0:01:10]} 31. Nxf2 {[%clk 0:00:48]}  Bxb1 {[%clk 0:01:11]} 32. Nf3 {[%clk 0:00:49]}  Bf6 {[%clk 0:01:10]} 0-1


[Site "https://www.chess.com"]

[Event "Titled Tuesday Blitz January 10 Early 2023"]
[White "Anton Guijarro, David"]
[Black "McCoy, Owen"]
[WhiteFideId "2285525"]
[BlackFideId "30924502"]
[WhiteElo "2690"]
[BlackElo "2085"]
[Result "1-0"]
[Round "02"]
[TimeControl "180+2"]
[Date "2023.01.10"]
[WhiteClock "0:00:21"]
[BlackClock "0:00:08"]

1. Nf3 {[%clk 0:03:00]}  d5 {[%clk 0:02:58]} 2. c4 {[%clk 0:03:00]}  e6 {[%clk 0:02:52]} 3. g3 {[%clk 0:02:59]}  Nf6 {[%clk 0:02:52]} 4. Bg2 {[%clk 0:02:59]}  Be7 {[%clk 0:02:44]} 5. O-O {[%clk 0:02:59]}  d4 {[%clk 0:02:45]} 6. e3 {[%clk 0:02:56]}  Nc6 {[%clk 0:02:42]} 7. exd4 {[%clk 0:02:43]}  Nxd4 {[%clk 0:02:43]} 8. Nxd4 {[%clk 0:02:43]}  Qxd4 {[%clk 0:02:44]} 9. d3 {[%clk 0:02:44]}  O-O {[%clk 0:02:36]} 10. Nc3 {[%clk 0:02:42]}  Rd8 {[%clk 0:02:34]} 11. Nb5 {[%clk 0:02:24]}  Qd7 {[%clk 0:02:20]} 12. Bf4 {[%clk 0:02:09]}  Ne8 {[%clk 0:02:19]} 13. Qb3 {[%clk 0:01:41]}  c6 {[%clk 0:02:02]} 14. Nc3 {[%clk 0:01:41]}  Qxd3 {[%clk 0:02:02]} 15. Rad1 {[%clk 0:01:37]}  Qf5 {[%clk 0:01:59]} 16. Rxd8 {[%clk 0:01:33]}  Bxd8 {[%clk 0:02:00]} 17. Rd1 {[%clk 0:01:17]}  Be7 {[%clk 0:01:58]} 18. Qa4 {[%clk 0:01:13]}  e5 {[%clk 0:01:53]} 19. Bxc6 {[%clk 0:00:52]}  exf4 {[%clk 0:01:31]} 20. Be4 {[%clk 0:00:46]}  Qe6 {[%clk 0:01:19]} 21. Qxe8+ {[%clk 0:00:45]}  Bf8 {[%clk 0:01:18]} 22. Rd8 {[%clk 0:00:38]}  Qxe8 {[%clk 0:01:16]} 23. Rxe8 {[%clk 0:00:39]}  fxg3 {[%clk 0:01:00]} 24. hxg3 {[%clk 0:00:40]}  g6 {[%clk 0:00:37]} 25. Nb5 {[%clk 0:00:25]}  Kg7 {[%clk 0:00:34]} 26. a3 {[%clk 0:00:25]}  a6 {[%clk 0:00:31]} 27. Nc7 {[%clk 0:00:25]}  Rb8 {[%clk 0:00:30]} 28. Nd5 {[%clk 0:00:25]}  Bd6 {[%clk 0:00:29]} 29. Nb6 {[%clk 0:00:21]}  Be6 {[%clk 0:00:26]} 30. Rxb8 {[%clk 0:00:22]}  Bxb8 {[%clk 0:00:27]} 31. Bxb7 {[%clk 0:00:22]}  a5 {[%clk 0:00:28]} 32. b4 {[%clk 0:00:22]}  axb4 {[%clk 0:00:26]} 33. axb4 {[%clk 0:00:23]}  Kf8 {[%clk 0:00:20]} 34. c5 {[%clk 0:00:23]}  Ke7 {[%clk 0:00:20]} 35. Bd5 {[%clk 0:00:20]}  Bf5 {[%clk 0:00:19]} 36. Nc4 {[%clk 0:00:20]}  Ba7 {[%clk 0:00:18]} 37. Kg2 {[%clk 0:00:20]}  Bd3 {[%clk 0:00:18]} 38. f4 {[%clk 0:00:20]}  f5 {[%clk 0:00:17]} 39. Kf3 {[%clk 0:00:20]}  Bc2 {[%clk 0:00:16]} 40. Ke3 {[%clk 0:00:21]}  Kd7 {[%clk 0:00:14]} 41. Kd4 {[%clk 0:00:21]}  Bb3 {[%clk 0:00:12]} 42. b5 {[%clk 0:00:21]}  Bxc4 {[%clk 0:00:11]} 43. Kxc4 {[%clk 0:00:21]}  Kc8 {[%clk 0:00:11]} 44. b6 {[%clk 0:00:21]}  Bb8 {[%clk 0:00:11]} 45. c6 {[%clk 0:00:21]}  g5 {[%clk 0:00:08]} 46. Be6+ {[%clk 0:00:21]}  Kd8 {[%clk 0:00:09]} 47. fxg5 {[%clk 0:00:21]}  Bxg3 {[%clk 0:00:08]} 48. Bxf5 {[%clk 0:00:21]}  Bf4 {[%clk 0:00:08]} 49. Kb5 {[%clk 0:00:21]} 1-0


[Site "https://www.chess.com"]

[Event "Titled Tuesday Blitz January 10 Early 2023"]
[White "UnknownMagician"]
[Black "Praggnanandhaa R"]
[BlackFideId "25059530"]
[WhiteElo "2657"]
[BlackElo "2688"]
[Result "0-1"]
[Round "02"]
[TimeControl "180+2"]
[Date "2023.01.10"]
[WhiteClock "0:00:26"]
[BlackClock "0:01:19"]

1. c4 {[%clk 0:03:00]}  d6 {[%clk 0:02:59]} 2. Nc3 {[%clk 0:02:58]}  e5 {[%clk 0:02:58]} 3. d3 {[%clk 0:02:58]}  Nc6 {[%clk 0:02:57]} 4. g3 {[%clk 0:02:57]}  f5 {[%clk 0:02:54]} 5. Bg2 {[%clk 0:02:57]}  Nf6 {[%clk 0:02:51]} 6. Nf3 {[%clk 0:02:57]}  g6 {[%clk 0:02:51]} 7. O-O {[%clk 0:02:53]}  Bg7 {[%clk 0:02:52]} 8. Rb1 {[%clk 0:02:53]}  a5 {[%clk 0:02:51]} 9. a3 {[%clk 0:02:53]}  O-O {[%clk 0:02:50]} 10. Bg5 {[%clk 0:02:50]}  h6 {[%clk 0:02:50]} 11. Bxf6 {[%clk 0:02:50]}  Rxf6 {[%clk 0:02:45]} 12. Nd5 {[%clk 0:02:51]}  Rf7 {[%clk 0:02:46]} 13. b4 {[%clk 0:02:51]}  axb4 {[%clk 0:02:45]} 14. axb4 {[%clk 0:02:52]}  Ne7 {[%clk 0:02:44]} 15. Nxe7+ {[%clk 0:02:46]}  Qxe7 {[%clk 0:02:40]} 16. b5 {[%clk 0:02:47]}  Kh7 {[%clk 0:02:35]} 17. Ne1 {[%clk 0:02:23]}  e4 {[%clk 0:02:20]} 18. Nc2 {[%clk 0:02:20]}  c6 {[%clk 0:02:16]} 19. bxc6 {[%clk 0:02:16]}  bxc6 {[%clk 0:02:17]} 20. Nb4 {[%clk 0:02:17]}  Bd7 {[%clk 0:02:15]} 21. Qc2 {[%clk 0:02:08]}  Re8 {[%clk 0:02:08]} 22. Rfd1 {[%clk 0:01:48]}  e3 {[%clk 0:01:57]} 23. f4 {[%clk 0:01:46]}  Rc8 {[%clk 0:01:54]} 24. d4 {[%clk 0:01:36]}  Qe8 {[%clk 0:01:52]} 25. Qd3 {[%clk 0:01:17]}  g5 {[%clk 0:01:47]} 26. fxg5 {[%clk 0:01:16]}  hxg5 {[%clk 0:01:47]} 27. d5 {[%clk 0:01:15]}  c5 {[%clk 0:01:44]} 28. Nc6 {[%clk 0:01:15]}  Kh8 {[%clk 0:01:43]} 29. Rb7 {[%clk 0:01:05]}  Rf8 {[%clk 0:01:29]} 30. Rdb1 {[%clk 0:00:46]}  Ra8 {[%clk 0:01:27]} 31. Bh3 {[%clk 0:00:39]}  g4 {[%clk 0:01:24]} 32. Bg2 {[%clk 0:00:38]}  f4 {[%clk 0:01:25]} 33. gxf4 {[%clk 0:00:36]}  Bf5 {[%clk 0:01:22]} 34. Qd1 {[%clk 0:00:25]}  Bxb1 {[%clk 0:01:21]} 35. Qxb1 {[%clk 0:00:26]}  Ra1 {[%clk 0:01:19]} 0-1


[Site "https://www.chess.com"]

[Event "Titled Tuesday Blitz January 10 Early 2023"]
[White "Shuvalova, Polina"]
[Black "Chigaev, Maksim"]
[WhiteFideId "24171760"]
[BlackFideId "4108116"]
[WhiteElo "2484"]
[BlackElo "2628"]
[Result "0-1"]
[Round "02"]
[TimeControl "180+2"]
[Date "2023.01.10"]
[WhiteClock "0:00:01"]
[BlackClock "0:00:14"]

1. d4 {[%clk 0:03:00]}  Nf6 {[%clk 0:02:59]} 2. Nf3 {[%clk 0:03:00]}  g6 {[%clk 0:03:00]} 3. c4 {[%clk 0:02:59]}  Bg7 {[%clk 0:03:00]} 4. Nc3 {[%clk 0:03:00]}  O-O {[%clk 0:03:01]} 5. e4 {[%clk 0:03:00]}  d6 {[%clk 0:03:01]} 6. Be2 {[%clk 0:03:00]}  e5 {[%clk 0:03:02]} 7. d5 {[%clk 0:03:00]}  a5 {[%clk 0:03:01]} 8. h3 {[%clk 0:02:59]}  Na6 {[%clk 0:03:01]} 9. Bg5 {[%clk 0:02:59]}  Qe8 {[%clk 0:02:56]} 10. g4 {[%clk 0:02:52]}  Nd7 {[%clk 0:02:51]} 11. Rg1 {[%clk 0:02:34]}  Nb6 {[%clk 0:02:42]} 12. Nd2 {[%clk 0:02:25]}  Bd7 {[%clk 0:02:39]} 13. h4 {[%clk 0:02:24]}  Nc5 {[%clk 0:02:25]} 14. h5 {[%clk 0:02:20]}  h6 {[%clk 0:02:25]} 15. Be3 {[%clk 0:02:20]}  g5 {[%clk 0:02:19]} 16. b3 {[%clk 0:02:04]}  c6 {[%clk 0:02:19]} 17. a4 {[%clk 0:01:55]}  Rc8 {[%clk 0:02:00]} 18. Bxc5 {[%clk 0:01:48]}  dxc5 {[%clk 0:02:01]} 19. Bd3 {[%clk 0:01:40]}  Na8 {[%clk 0:01:48]} 20. Nf1 {[%clk 0:01:39]}  Nc7 {[%clk 0:01:48]} 21. Ne3 {[%clk 0:01:39]}  Na6 {[%clk 0:01:38]} 22. Rc1 {[%clk 0:01:35]}  Nb4 {[%clk 0:01:38]} 23. Rg3 {[%clk 0:01:24]}  Rd8 {[%clk 0:01:35]} 24. Qe2 {[%clk 0:01:23]}  Kh8 {[%clk 0:01:23]} 25. Kf1 {[%clk 0:01:23]}  Bc8 {[%clk 0:01:21]} 26. Kg2 {[%clk 0:01:22]}  Rd6 {[%clk 0:01:20]} 27. Bb1 {[%clk 0:01:17]}  Rf6 {[%clk 0:01:17]} 28. Nf5 {[%clk 0:01:12]}  Bxf5 {[%clk 0:01:16]} 29. exf5 {[%clk 0:00:55]}  e4 {[%clk 0:01:16]} 30. Re3 {[%clk 0:00:46]}  cxd5 {[%clk 0:01:02]} 31. cxd5 {[%clk 0:00:46]}  Qd8 {[%clk 0:00:45]} 32. Rd1 {[%clk 0:00:45]}  Rd6 {[%clk 0:00:38]} 33. f6 {[%clk 0:00:34]}  Rxf6 {[%clk 0:00:33]} 34. Nxe4 {[%clk 0:00:31]}  Rf4 {[%clk 0:00:33]} 35. Ng3 {[%clk 0:00:23]}  Bd4 {[%clk 0:00:22]} 36. Nf5 {[%clk 0:00:07]}  Qxd5+ {[%clk 0:00:19]} 37. Be4 {[%clk 0:00:05]}  Qd8 {[%clk 0:00:16]} 38. Nxd4 {[%clk 0:00:05]}  cxd4 {[%clk 0:00:17]} 39. Rg3 {[%clk 0:00:04]}  Qf6 {[%clk 0:00:17]} 40. Bb1 {[%clk 0:00:03]}  Kg7 {[%clk 0:00:16]} 41. Bf5 {[%clk 0:00:03]}  Rd8 {[%clk 0:00:17]} 42. Rf3 {[%clk 0:00:03]}  d3 {[%clk 0:00:15]} 43. Qe3 {[%clk 0:00:03]}  Rdd4 {[%clk 0:00:14]} 44. Rxf4 {[%clk 0:00:03]}  gxf4 {[%clk 0:00:13]} 45. Qf3 {[%clk 0:00:03]}  d2 {[%clk 0:00:14]} 46. Qh3 {[%clk 0:00:02]}  Qb6 {[%clk 0:00:14]} 47. g5 {[%clk 0:00:01]}  Qc6+ {[%clk 0:00:13]} 48. Kh2 {[%clk 0:00:02]}  hxg5 {[%clk 0:00:14]} 49. Qg4 {[%clk 0:00:02]}  Qh6 {[%clk 0:00:14]} 50. Bb1 {[%clk 0:00:01]}  Nc6 {[%clk 0:00:14]} 51. Qg2 {[%clk 0:00:02]}  Ne5 {[%clk 0:00:14]} 52. Rg1 {[%clk 0:00:02]}  Qxh5+ {[%clk 0:00:14]} 53. Qh3 {[%clk 0:00:01]}  Nf3+ {[%clk 0:00:14]} 0-1


[Site "https://www.chess.com"]

[Event "Titled Tuesday Blitz January 10 Early 2023"]
[White "Koellner, Ruben Gideon"]
[Black "Tomashevsky, Evgeny"]
[WhiteFideId "12993093"]
[BlackFideId "4147235"]
[WhiteElo "2426"]
[BlackElo "2694"]
[Result "1/2-1/2"]
[Round "02"]
[TimeControl "180+2"]
[Date "2023.01.10"]
[WhiteClock "0:00:05"]
[BlackClock "0:00:25"]

1. d4 {[%clk 0:03:00]}  Nf6 {[%clk 0:02:59]} 2. Bg5 {[%clk 0:02:59]}  d5 {[%clk 0:02:57]} 3. e3 {[%clk 0:02:56]}  c5 {[%clk 0:02:56]} 4. c3 {[%clk 0:02:52]}  Qb6 {[%clk 0:02:49]} 5. Qb3 {[%clk 0:02:40]}  Nc6 {[%clk 0:02:47]} 6. Nd2 {[%clk 0:02:35]}  e5 {[%clk 0:02:41]} 7. dxe5 {[%clk 0:02:21]}  Nxe5 {[%clk 0:02:41]} 8. Bxf6 {[%clk 0:02:16]}  Qxb3 {[%clk 0:02:26]} 9. axb3 {[%clk 0:02:09]}  gxf6 {[%clk 0:02:27]} 10. Bb5+ {[%clk 0:02:05]}  Ke7 {[%clk 0:02:25]} 11. Ngf3 {[%clk 0:02:00]}  Be6 {[%clk 0:02:22]} 12. O-O {[%clk 0:01:58]}  h5 {[%clk 0:02:20]} 13. Nh4 {[%clk 0:01:53]}  Bh6 {[%clk 0:02:17]} 14. g3 {[%clk 0:01:46]}  Ng6 {[%clk 0:02:13]} 15. Ndf3 {[%clk 0:01:38]}  Nxh4 {[%clk 0:02:09]} 16. Nxh4 {[%clk 0:01:39]}  Bg5 {[%clk 0:02:10]} 17. Ng2 {[%clk 0:01:35]}  f5 {[%clk 0:01:55]} 18. h4 {[%clk 0:01:32]}  Bf6 {[%clk 0:01:50]} 19. Rfd1 {[%clk 0:01:31]}  Be5 {[%clk 0:01:49]} 20. Be2 {[%clk 0:01:30]}  a6 {[%clk 0:01:48]} 21. Ra5 {[%clk 0:01:23]}  b6 {[%clk 0:01:20]} 22. Rxa6 {[%clk 0:01:06]}  Rxa6 {[%clk 0:01:21]} 23. Bxa6 {[%clk 0:01:06]}  Ra8 {[%clk 0:01:21]} 24. Bb7 {[%clk 0:01:06]}  Ra2 {[%clk 0:01:20]} 25. Bxd5 {[%clk 0:01:06]}  Rxb2 {[%clk 0:01:20]} 26. Nf4 {[%clk 0:00:40]}  Bxc3 {[%clk 0:01:17]} 27. Nxe6 {[%clk 0:00:16]}  fxe6 {[%clk 0:01:17]} 28. Bc4 {[%clk 0:00:17]}  Bd2 {[%clk 0:01:16]} 29. Ra1 {[%clk 0:00:16]}  Ba5 {[%clk 0:01:01]} 30. Rd1 {[%clk 0:00:15]}  Bc3 {[%clk 0:00:52]} 31. Kf1 {[%clk 0:00:13]}  e5 {[%clk 0:00:47]} 32. Ra1 {[%clk 0:00:10]}  f4 {[%clk 0:00:40]} 33. exf4 {[%clk 0:00:10]}  exf4 {[%clk 0:00:40]} 34. gxf4 {[%clk 0:00:09]}  Bd4 {[%clk 0:00:39]} 35. Re1+ {[%clk 0:00:09]}  Kd7 {[%clk 0:00:37]} 36. Re2 {[%clk 0:00:09]}  Rb1+ {[%clk 0:00:36]} 37. Kg2 {[%clk 0:00:10]}  Bf6 {[%clk 0:00:28]} 38. Re6 {[%clk 0:00:08]}  Bxh4 {[%clk 0:00:27]} 39. Rxb6 {[%clk 0:00:08]}  Rb2 {[%clk 0:00:27]} 40. Rh6 {[%clk 0:00:05]}  Rxf2+ {[%clk 0:00:27]} 41. Kh3 {[%clk 0:00:05]}  Rxf4 {[%clk 0:00:26]} 42. Rxh5 {[%clk 0:00:05]}  Bf2 {[%clk 0:00:26]} 43. Rd5+ {[%clk 0:00:05]}  Kc6 {[%clk 0:00:25]} 1/2-1/2


[Site "https://www.chess.com"]

[Event "Titled Tuesday Blitz January 10 Early 2023"]
[White "Dehtiarov, Roman"]
[Black "Vokhidov, Shamsiddin"]
[WhiteFideId "14186640"]
[BlackFideId "14204223"]
[WhiteElo "2289"]
[BlackElo "2586"]
[Result "0-1"]
[Round "02"]
[TimeControl "180+2"]
[Date "2023.01.10"]
[WhiteClock "0:00:04"]
[BlackClock "0:00:07"]

1. e4 {[%clk 0:03:00]}  c5 {[%clk 0:03:00]} 2. Nc3 {[%clk 0:02:51]}  Nc6 {[%clk 0:03:00]} 3. f4 {[%clk 0:02:42]}  e6 {[%clk 0:03:00]} 4. Nf3 {[%clk 0:02:42]}  d5 {[%clk 0:03:00]} 5. Bb5 {[%clk 0:02:43]}  Ne7 {[%clk 0:03:00]} 6. exd5 {[%clk 0:02:38]}  Nxd5 {[%clk 0:03:01]} 7. Qe2 {[%clk 0:02:39]}  Nxf4 {[%clk 0:03:00]} 8. Qf2 {[%clk 0:02:38]}  Bd7 {[%clk 0:02:44]} 9. O-O {[%clk 0:02:37]}  Ng6 {[%clk 0:02:26]} 10. Nd4 {[%clk 0:02:07]}  Qf6 {[%clk 0:02:13]} 11. Qxf6 {[%clk 0:02:04]}  gxf6 {[%clk 0:02:14]} 12. Nxc6 {[%clk 0:02:04]}  bxc6 {[%clk 0:02:14]} 13. Bc4 {[%clk 0:02:01]}  f5 {[%clk 0:01:57]} 14. d3 {[%clk 0:01:59]}  Rg8 {[%clk 0:01:51]} 15. Be3 {[%clk 0:01:58]}  Ne5 {[%clk 0:01:27]} 16. Na4 {[%clk 0:01:56]}  Ng4 {[%clk 0:01:12]} 17. Bxc5 {[%clk 0:01:52]}  Bxc5+ {[%clk 0:01:04]} 18. Nxc5 {[%clk 0:01:53]}  Ke7 {[%clk 0:01:04]} 19. Rae1 {[%clk 0:01:48]}  Kd6 {[%clk 0:01:04]} 20. Nxd7 {[%clk 0:01:48]}  Kxd7 {[%clk 0:01:05]} 21. h3 {[%clk 0:01:48]}  Nf6 {[%clk 0:01:04]} 22. Kh2 {[%clk 0:01:42]}  Rg5 {[%clk 0:01:00]} 23. g4 {[%clk 0:01:39]}  Rag8 {[%clk 0:00:54]} 24. Re2 {[%clk 0:01:38]}  Nxg4+ {[%clk 0:00:36]} 25. hxg4 {[%clk 0:01:37]}  Rxg4 {[%clk 0:00:37]} 26. Rf3 {[%clk 0:01:35]}  h5 {[%clk 0:00:33]} 27. Rh3 {[%clk 0:01:32]}  h4 {[%clk 0:00:32]} 28. c3 {[%clk 0:01:29]}  c5 {[%clk 0:00:31]} 29. Rf2 {[%clk 0:01:23]}  Kd6 {[%clk 0:00:25]} 30. Bb3 {[%clk 0:01:22]}  R8g7 {[%clk 0:00:20]} 31. Bd1 {[%clk 0:01:17]}  Rg1 {[%clk 0:00:20]} 32. Bb3 {[%clk 0:01:14]}  R1g3 {[%clk 0:00:17]} 33. Rxh4 {[%clk 0:01:08]}  Rxd3 {[%clk 0:00:17]} 34. Bc4 {[%clk 0:01:08]}  Rd1 {[%clk 0:00:15]} 35. Rh3 {[%clk 0:01:06]}  Rgg1 {[%clk 0:00:14]} 36. Rd3+ {[%clk 0:01:04]}  Ke5 {[%clk 0:00:14]} 37. Rxd1 {[%clk 0:01:04]}  Rxd1 {[%clk 0:00:15]} 38. b4 {[%clk 0:01:04]}  Rc1 {[%clk 0:00:14]} 39. Re2+ {[%clk 0:00:58]}  Kf4 {[%clk 0:00:14]} 40. Rf2+ {[%clk 0:00:46]}  Ke4 {[%clk 0:00:14]} 41. Re2+ {[%clk 0:00:45]}  Kf4 {[%clk 0:00:13]} 42. Rf2+ {[%clk 0:00:46]}  Ke3 {[%clk 0:00:11]} 43. Re2+ {[%clk 0:00:44]}  Kf3 {[%clk 0:00:10]} 44. Rg2 {[%clk 0:00:28]}  cxb4 {[%clk 0:00:09]} 45. Be2+ {[%clk 0:00:28]}  Ke3 {[%clk 0:00:09]} 46. cxb4 {[%clk 0:00:28]}  f4 {[%clk 0:00:09]} 47. Bh5 {[%clk 0:00:26]}  e5 {[%clk 0:00:08]} 48. Re2+ {[%clk 0:00:22]}  Kd4 {[%clk 0:00:09]} 49. Bxf7 {[%clk 0:00:22]}  f3 {[%clk 0:00:08]} 50. Rf2 {[%clk 0:00:21]}  Ke3 {[%clk 0:00:07]} 51. Rb2 {[%clk 0:00:08]}  f2 {[%clk 0:00:07]} 52. Rb3+ {[%clk 0:00:08]}  Kf4 {[%clk 0:00:07]} 53. Bh5 {[%clk 0:00:03]}  f1=Q {[%clk 0:00:07]} 54. Rf3+ {[%clk 0:00:03]}  Qxf3 {[%clk 0:00:06]} 55. Bxf3 {[%clk 0:00:04]}  Kxf3 {[%clk 0:00:07]} 0-1


[Site "https://www.chess.com"]

[Event "Titled Tuesday Blitz January 10 Early 2023"]
[White "Lenderman, Aleksandr"]
[Black "Sokolovsky, Yahli"]
[WhiteFideId "2021285"]
[BlackFideId "2820242"]
[WhiteElo "2572"]
[BlackElo "2461"]
[Result "1-0"]
[Round "02"]
[TimeControl "180+2"]
[Date "2023.01.10"]
[WhiteClock "0:01:43"]
[BlackClock "0:00:06"]

1. Nf3 {[%clk 0:03:00]}  g6 {[%clk 0:02:05]} 2. e4 {[%clk 0:03:00]}  Bg7 {[%clk 0:02:05]} 3. d4 {[%clk 0:02:59]}  d6 {[%clk 0:02:06]} 4. Bd3 {[%clk 0:02:59]}  c5 {[%clk 0:02:03]} 5. dxc5 {[%clk 0:02:51]}  Qa5+ {[%clk 0:02:02]} 6. c3 {[%clk 0:02:48]}  Qxc5 {[%clk 0:02:02]} 7. O-O {[%clk 0:02:45]}  Nf6 {[%clk 0:01:59]} 8. Na3 {[%clk 0:02:44]}  Nc6 {[%clk 0:01:54]} 9. Be3 {[%clk 0:02:44]}  Qh5 {[%clk 0:01:54]} 10. h3 {[%clk 0:02:40]}  O-O {[%clk 0:01:47]} 11. Re1 {[%clk 0:02:41]}  Qa5 {[%clk 0:01:37]} 12. Nd4 {[%clk 0:02:38]}  Nxd4 {[%clk 0:01:30]} 13. cxd4 {[%clk 0:02:38]}  Be6 {[%clk 0:01:25]} 14. d5 {[%clk 0:02:38]}  Bd7 {[%clk 0:01:24]} 15. Nc4 {[%clk 0:02:38]}  Qd8 {[%clk 0:01:20]} 16. a4 {[%clk 0:02:38]}  Bc8 {[%clk 0:01:15]} 17. Bd4 {[%clk 0:02:35]}  Nd7 {[%clk 0:01:15]} 18. Bf1 {[%clk 0:02:34]}  Ne5 {[%clk 0:01:03]} 19. Nxe5 {[%clk 0:02:33]}  Bxe5 {[%clk 0:01:04]} 20. Bxe5 {[%clk 0:02:31]}  dxe5 {[%clk 0:01:05]} 21. Qb3 {[%clk 0:02:29]}  Qd6 {[%clk 0:01:00]} 22. Rac1 {[%clk 0:02:27]}  Bd7 {[%clk 0:01:01]} 23. a5 {[%clk 0:02:20]}  b6 {[%clk 0:01:01]} 24. axb6 {[%clk 0:02:11]}  axb6 {[%clk 0:01:02]} 25. Bb5 {[%clk 0:02:09]}  Bxb5 {[%clk 0:01:02]} 26. Qxb5 {[%clk 0:02:09]}  Ra5 {[%clk 0:01:03]} 27. Qc6 {[%clk 0:02:08]}  Rc5 {[%clk 0:01:03]} 28. Qxd6 {[%clk 0:02:06]}  exd6 {[%clk 0:01:04]} 29. b4 {[%clk 0:02:06]}  Rcc8 {[%clk 0:01:01]} 30. Rc6 {[%clk 0:02:03]}  b5 {[%clk 0:00:35]} 31. Rec1 {[%clk 0:01:53]}  Ra8 {[%clk 0:00:35]} 32. Rxd6 {[%clk 0:01:50]}  Ra4 {[%clk 0:00:34]} 33. Rb1 {[%clk 0:01:51]}  Rb8 {[%clk 0:00:15]} 34. Rc6 {[%clk 0:01:51]}  Kf8 {[%clk 0:00:15]} 35. Rc7 {[%clk 0:01:51]}  Ke8 {[%clk 0:00:13]} 36. Rb3 {[%clk 0:01:51]}  Rd8 {[%clk 0:00:09]} 37. Rb7 {[%clk 0:01:47]}  Rc8 {[%clk 0:00:08]} 38. Rxb5 {[%clk 0:01:47]}  Rc2 {[%clk 0:00:07]} 39. Rb8+ {[%clk 0:01:46]}  Ke7 {[%clk 0:00:06]} 40. Rb7+ {[%clk 0:01:47]}  Kd6 {[%clk 0:00:05]} 41. Rf3 {[%clk 0:01:48]}  f5 {[%clk 0:00:03]} 42. exf5 {[%clk 0:01:48]}  e4 {[%clk 0:00:03]} 43. Rf4 {[%clk 0:01:48]}  gxf5 {[%clk 0:00:04]} 44. Rxf5 {[%clk 0:01:48]}  Ra1+ {[%clk 0:00:05]} 45. Kh2 {[%clk 0:01:48]}  Raa2 {[%clk 0:00:05]} 46. Rb6+ {[%clk 0:01:47]}  Kc7 {[%clk 0:00:06]} 47. Re6 {[%clk 0:01:45]}  Rxf2 {[%clk 0:00:04]} 48. Rxf2 {[%clk 0:01:44]}  Rxf2 {[%clk 0:00:05]} 49. Rxe4 {[%clk 0:01:45]}  Kd6 {[%clk 0:00:06]} 50. Rh4 {[%clk 0:01:45]}  Rf7 {[%clk 0:00:05]} 51. Rh5 {[%clk 0:01:43]}  Rb7 {[%clk 0:00:05]} 52. g4 {[%clk 0:01:43]}  Ra7 {[%clk 0:00:05]} 53. Kg3 {[%clk 0:01:43]}  Rb7 {[%clk 0:00:06]} 54. Kh4 {[%clk 0:01:43]}  Rxb4 {[%clk 0:00:06]} 55. Rxh7 {[%clk 0:01:43]} 1-0


[Site "https://www.chess.com"]